bitfinex/quotes_ETHUSD_20250620
["timestamp","ask_amount","ask_price","bid_price","bid_amount"]
[1750385336561,28.2687,2530.6,2530.3,3.95202851]
[1750385336785,2.65130313,2530.5,2530.3,3.95209714]
[1750385336947,7.51383397,2530.4,2530.0,3.95242535]
[1750385337273,0.36941557,2530.3,2530.0,3.95242535]
[1750385337464,6.371,2530.2,2530.0,3.95242535]
[1750385337653,1.625,2530.1,2530.0,3.95242535]
[1750385340374,1.625,2530.1,2530.0,4.01432535]
[1750385341377,1.99535859,2530.1,2530.0,4.01432535]
[1750385341556,1.625,2530.1,2530.0,4.01432535]
[1750385342077,7.996,2530.1,2530.0,5.57743849]
[1750385342481,0.7517,2530.6,2530.3,3.9520439]
[1750385342646,8.36634614,2530.5,2530.3,4.0139439]
[1750385342845,0.37034614,2530.4,2530.3,4.0139439]
[1750385343698,8.36643683,2530.4,2530.3,4.0139439]
[1750385343850,8.36643541,2530.4,2530.3,4.0139439]
[1750385344050,8.36643493,2530.4,2530.3,4.0139439]
[1750385344877,8.366435,2530.4,2530.3,4.0139439]
[1750385345386,8.36643209,2530.4,2530.3,4.01396521]
[1750385346489,8.36644284,2530.4,2530.3,4.01396521]
[1750385346968,8.36644284,2530.4,2530.3,3.95206521]
[1750385347284,8.36644442,2530.4,2530.2,3.95213372]
[1750385347490,0.37044442,2530.3,2530.2,3.95213372]
[1750385347986,0.37045287,2530.3,2530.2,3.95213372]
[1750385348188,0.37045339,2530.3,2530.2,3.95213372]
[1750385348386,7.996,2530.4,2530.2,3.95213372]
[1750385348575,0.37047094,2530.3,2530.2,3.95213372]
[1750385349387,7.996,2530.4,2530.2,3.95213372]
[1750385349556,0.37044898,2530.3,2530.2,3.95213372]
[1750385351866,7.996,2530.4,2530.3,3.95210054]
[1750385352060,8.36646453,2530.4,2530.3,3.95210054]
[1750385352265,8.36645193,2530.4,2530.3,3.95210054]
[1750385353185,8.36645121,2530.4,2530.3,3.95210054]
[1750385353991,8.36645121,2530.4,2530.1,0.0572]
[1750385354170,8.91239512,2530.4,2530.2,3.95224506]
[1750385354368,0.37047971,2530.3,2530.2,3.95224506]
[1750385355086,8.91239512,2530.4,2530.2,3.95224506]
[1750385355281,0.37048704,2530.3,2530.2,3.95224506]
[1750385357302,8.91239512,2530.4,2530.3,3.95210054]
[1750385357461,9.28286109,2530.4,2530.3,3.95210054]
[1750385357861,8.91239512,2530.4,2530.3,3.95210054]
[1750385358056,9.28285998,2530.4,2530.3,3.95210054]
[1750385359495,9.28285314,2530.4,2530.3,3.95210054]
[1750385359796,8.91239512,2530.4,2530.3,3.95210054]
[1750385359954,9.28285317,2530.4,2530.3,3.95210054]
[1750385360790,8.91239512,2530.4,2530.3,3.95210054]
[1750385361105,9.28287217,2530.4,2530.3,3.95210054]
[1750385361459,9.28286861,2530.4,2530.3,4.00930054]
[1750385362092,9.2828685,2530.4,2530.3,4.00930054]
[1750385362294,9.28286852,2530.4,2530.3,4.00930054]
[1750385362468,8.3664734,2530.4,2530.3,4.00930054]
[1750385363198,7.996,2530.4,2530.3,4.00930054]
[1750385363397,8.36648196,2530.4,2530.3,4.00930054]
[1750385363696,8.36648078,2530.4,2530.3,4.00930054]
[1750385364903,8.36649811,2530.4,2530.3,4.00930054]
[1750385365871,8.36651592,2530.4,2530.3,4.00930054]
[1750385366511,8.36657009,2530.4,2530.3,4.00930054]
[1750385367710,8.36657107,2530.4,2530.3,4.00930054]
[1750385367883,8.36657103,2530.4,2530.3,4.00930054]
[1750385368085,8.36658318,2530.4,2530.3,4.00930054]
[1750385369509,8.3666209,2530.4,2530.3,4.00930054]
[1750385370411,9.28303299,2530.4,2529.9,0.0572]
[1750385370709,1.14465215,2530.3,2530.0,3.95256754]
[1750385370876,0.37065215,2530.2,2529.9,4.00983041]
[1750385371077,6.74165215,2530.1,2529.9,4.00983041]
[1750385371288,0.37065215,2530.0,2529.9,3.95263041]
[1750385371607,1.80311737,2530.0,2529.5,3.95328487]
[1750385371814,1.99465215,2529.9,2529.6,3.95309822]
[1750385372105,6.74465215,2529.8,2529.6,3.95309822]
[1750385372286,0.37067337,2529.7,2529.6,3.95309822]
[1750385372888,0.37067194,2529.7,2529.6,3.95309822]
[1750385373516,0.37065919,2529.7,2529.6,3.95309822]
[1750385373688,0.37065919,2529.7,2529.6,4.01029822]
[1750385374014,6.374,2529.8,2529.6,4.01029822]
[1750385375975,6.374,2529.8,2529.7,3.9530379]
[1750385376413,6.74419664,2529.8,2529.7,3.9530379]
[1750385376709,6.7441958,2529.8,2529.7,3.9530379]
[1750385377209,6.7441958,2529.8,2529.7,4.0111379]
[1750385377210,6.74401445,2529.8,2529.7,4.0111379]
[1750385377408,0.37001445,2529.8,2529.7,12.45523955]
[1750385377712,1.1752952,2530.3,2530.1,3.95241294]
[1750385377886,10.0,2530.5,2530.2,0.0581]
[1750385378089,8.3739691,2530.4,2530.2,0.0581]
[1750385378287,0.3699691,2530.3,2530.2,0.0581]
[1750385378485,0.36994076,2530.3,2530.2,0.0581]
[1750385378910,10.36994113,2530.3,2530.2,0.0581]
[1750385379618,10.36994113,2530.3,2530.1,4.01051294]
[1750385379910,16.74794113,2530.2,2530.1,0.0581]
[1750385380283,16.74793294,2530.2,2530.1,0.0581]
[1750385380488,16.74793352,2530.2,2530.1,0.0581]
[1750385382113,16.7479213,2530.2,2530.1,0.0581]
[1750385383416,10.3699213,2530.2,2530.1,0.0581]
[1750385383618,16.7479213,2530.2,2530.1,0.0581]
[1750385385231,16.74793982,2530.2,2530.1,0.0581]
[1750385385720,16.74793855,2530.2,2530.1,0.0581]
[1750385386527,18.002,2530.2,2530.1,0.0581]
[1750385386823,18.37196464,2530.2,2530.1,0.0581]
[1750385389481,18.37197902,2530.2,2530.1,0.0581]
[1750385390412,18.002,2530.2,2530.1,0.0581]
[1750385390618,18.37197327,2530.2,2530.1,0.0581]
[1750385390796,18.37197305,2530.2,2530.1,0.0581]
[1750385391522,18.37201818,2530.2,2530.1,0.0581]
[1750385392020,18.37201823,2530.2,2530.1,0.0581]
[1750385392322,18.37201819,2530.2,2530.1,0.0581]
[1750385392917,18.002,2530.2,2530.1,0.0581]
[1750385393082,18.37205314,2530.2,2530.1,0.0581]
[1750385393286,18.37206096,2530.2,2530.1,0.0581]
[1750385395188,18.37208811,2530.2,2530.1,0.0581]
[1750385396421,18.002,2530.2,2530.1,0.0581]
[1750385396626,18.37214456,2530.2,2530.1,0.0581]
[1750385397626,18.3721724,2530.2,2530.1,0.0581]
[1750385398732,10.3701724,2530.2,2530.1,0.0581]
[1750385399034,18.3671724,2530.2,2530.1,0.0581]
[1750385399240,17.997,2530.2,2530.1,0.0581]
[1750385399542,18.36726969,2530.2,2530.1,0.0581]
[1750385400302,18.36746305,2530.2,2530.1,0.0581]
[1750385400913,18.3674629,2530.2,2530.1,0.0581]
[1750385402042,18.36756625,2530.2,2530.1,0.0581]
[1750385403444,17.997,2530.2,2530.1,0.0581]
[1750385403647,18.36758221,2530.2,2530.1,0.0581]
[1750385403806,18.36758167,2530.2,2530.1,0.0581]
[1750385404207,18.36764615,2530.2,2530.1,0.0581]
[1750385405740,10.7871,2530.1,2529.8,3.95276544]
[1750385405932,6.74264615,2530.0,2529.8,4.01086544]
[1750385406248,6.372,2530.0,2529.8,4.01086544]
[1750385406404,0.37067892,2529.9,2529.8,4.01086544]
[1750385406820,6.372,2530.0,2529.9,4.0098254]
[1750385407048,6.74278162,2530.0,2529.9,4.0098254]
[1750385407408,8.36778162,2530.0,2529.9,4.0098254]
[1750385407942,8.36778171,2530.0,2529.9,4.0098254]
[1750385408319,8.36778038,2530.0,2529.9,4.0098254]
[1750385408520,8.36778047,2530.0,2529.9,4.0098254]
[1750385409030,8.36778045,2530.0,2529.9,4.0098254]
[1750385409732,8.36778058,2530.0,2529.9,4.0098254]
[1750385410825,8.36778058,2530.0,2529.9,0.0571]
[1750385411050,8.36777411,2530.0,2529.9,0.0571]
[1750385411917,0.7762,2529.9,2529.6,3.95311485]
[1750385412117,6.7467975,2529.8,2529.7,0.0571]
[1750385412444,6.7467975,2529.8,2529.7,4.01013164]
[1750385412648,6.74680376,2529.8,2529.7,4.01013164]
[1750385413351,6.74679072,2529.8,2529.7,4.01013164]
[1750385414046,6.74679072,2529.8,2529.7,10.89014139]
[1750385414950,6.74673326,2529.8,2529.7,10.89014139]
[1750385415152,0.37073326,2529.8,2529.7,10.89014139]
[1750385415392,0.37073326,2529.8,2529.7,12.45194341]
[1750385416966,6.38,2529.9,2529.8,3.95288165]
[1750385417128,6.75070994,2529.9,2529.8,3.95288165]
[1750385417459,6.75070994,2529.9,2529.8,4.00998165]
[1750385418543,6.75071824,2529.9,2529.8,4.00998165]
[1750385419562,6.75074545,2529.9,2529.8,4.00998165]
[1750385419936,6.75075444,2529.9,2529.8,4.00998165]
[1750385420433,6.7507506,2529.9,2529.8,3.95288165]
[1750385420633,6.7507506,2529.9,2529.8,4.00998165]
[1750385421056,7.5810506,2529.9,2529.8,3.95288165]
[1750385422864,7.58108435,2529.9,2529.8,3.95288165]
[1750385423672,7.58108598,2529.9,2529.8,3.95288165]
[1750385425481,7.58107541,2529.9,2529.8,3.95288165]
[1750385426378,7.58107504,2529.9,2529.8,3.95288165]
[1750385428079,7.58106947,2529.9,2529.8,3.95288165]
[1750385428244,7.58106947,2529.9,2529.8,4.00998165]
[1750385428857,7.58106944,2529.9,2529.8,4.00998165]
[1750385429358,7.58106947,2529.9,2529.8,4.00998165]
[1750385430286,6.75076947,2529.9,2529.8,4.00998165]
[1750385430484,6.75076745,2529.9,2529.8,4.00998165]
[1750385431299,0.37076745,2529.9,2529.8,4.00998165]
[1750385431588,6.75176745,2529.9,2529.8,12.37429099]
[1750385431944,0.37076745,2529.9,2529.8,12.37429099]
[1750385432149,6.75576745,2529.9,2529.8,12.37429099]
[1750385433196,6.385,2529.9,2529.8,12.37429099]
[1750385437585,6.755531,2529.9,2529.8,4.01018165]
[1750385437784,6.385,2529.9,2529.8,4.01018165]
[1750385437954,6.755532,2529.9,2529.8,4.01018165]
[1750385438498,6.7555213,2529.9,2529.8,4.01018165]
[1750385439089,6.75553275,2529.9,2529.8,4.01018165]
[1750385439994,6.75554463,2529.9,2529.8,4.01018165]
[1750385440284,6.75554463,2529.9,2529.7,0.0573]
[1750385440461,0.37054463,2529.8,2529.7,0.0573]
[1750385440668,0.37055836,2529.8,2529.7,4.01018519]
[1750385441191,6.385,2529.9,2529.8,3.95288165]
[1750385441491,6.75555637,2529.9,2529.8,3.95288165]
[1750385442207,6.75555561,2529.9,2529.8,3.95288165]
[1750385442560,6.75555576,2529.9,2529.8,3.95288165]
[1750385442864,6.75555576,2529.9,2529.8,10.8901914]
[1750385443482,8.38555634,2529.9,2529.8,10.8901914]
[1750385444473,8.38556404,2529.9,2529.8,12.37451221]
[1750385444890,8.38556455,2529.9,2529.8,12.37451221]
[1750385445259,0.37056366,2529.9,2529.8,12.37451221]
[1750385445602,8.013,2530.0,2529.9,3.9527254]
[1750385445890,8.013,2530.0,2529.9,4.0100254]
[1750385448302,8.013,2530.0,2529.9,3.9527254]
[1750385448508,8.013,2530.0,2529.9,4.0100254]
[1750385450714,1.63,2530.0,2529.9,5.49431708]
[1750385450920,8.013,2530.0,2529.9,12.37432683]
[1750385456145,1.63,2530.4,2530.1,3.95240005]
[1750385456351,1.63,2530.4,2530.3,4.00940054]
[1750385456637,8.017,2530.4,2530.3,4.00940054]
[1750385456845,1.63,2530.4,2530.3,4.00940054]
[1750385457048,8.017,2530.4,2530.3,5.96688725]
[1750385457730,8.38731197,2530.4,2530.3,5.96688725]
[1750385457942,0.37031197,2530.4,2530.3,5.96688725]
[1750385458128,8.017,2530.4,2530.3,6.00640391]
[1750385458311,8.017,2530.4,2530.3,5.96688725]
[1750385458494,1.63,2530.4,2530.3,5.96688725]
[1750385458690,8.017,2530.4,2530.3,5.96688725]
[1750385459095,1.63,2530.4,2530.3,5.96688725]
[1750385459413,1.63,2530.4,2530.3,6.72128725]
[1750385459627,1.63,2530.4,2530.3,6.76080303]
[1750385459815,0.8249,2531.1,2531.0,3.9510075]
[1750385460011,19.21893772,2531.1,2531.0,3.9510075]
[1750385460225,4.41876094,2531.1,2531.0,3.9510075]
[1750385460539,1.19493664,2531.1,2531.0,3.9510075]
[1750385460698,8.39403664,2531.1,2531.0,4.0083075]
[1750385461218,8.39403664,2531.1,2531.0,3.9510075]
[1750385461837,8.3934384,2531.1,2531.0,3.9510075]
[1750385462195,8.393437,2531.1,2531.0,3.9510075]
[1750385463015,8.39343795,2531.1,2531.0,3.9510075]
[1750385463332,8.39343795,2531.1,2531.0,4.0083075]
[1750385463624,8.024,2531.1,2531.0,4.0083075]
[1750385465339,8.024,2531.1,2530.9,3.95108468]
[1750385465904,0.8129,2531.0,2530.7,3.95135377]
[1750385466220,0.8129,2531.0,2530.8,3.95131862]
[1750385468095,0.8129,2531.0,2530.9,3.95116361]
[1750385468899,0.8129,2531.0,2530.7,3.95144676]
[1750385469100,0.8129,2531.0,2530.8,3.95131482]
[1750385471336,0.8129,2531.0,2530.7,3.95140038]
[1750385471864,0.8129,2531.0,2530.8,3.95130499]
[1750385472452,0.8129,2531.0,2530.7,3.95138348]
[1750385472616,0.8129,2531.0,2530.7,4.01368348]
[1750385472805,0.8129,2531.0,2530.8,3.95131638]
[1750385477237,1.18214208,2531.0,2530.8,3.95131638]
[1750385477638,0.8129,2531.0,2530.8,3.95131638]
[1750385477843,1.18213958,2531.0,2530.8,3.95131638]
[1750385478210,0.8129,2531.0,2530.8,3.95131638]
[1750385478544,0.8129,2531.0,2530.9,3.95116361]
[1750385479548,1.18218152,2531.0,2530.8,3.95122448]
[1750385479923,0.8129,2531.0,2530.8,3.95122448]
[1750385480123,1.18218152,2531.0,2530.8,3.95122448]
[1750385481113,1.18218152,2531.0,2530.7,3.9514087]
[1750385481114,14.73368212,2530.8,2530.2,0.0623]
[1750385481309,10.70182589,2530.7,2530.3,3.95201267]
[1750385481517,6.7385599,2530.6,2530.2,4.01448424]
[1750385481715,0.36962833,2530.5,2530.2,4.01448424]
[1750385481915,6.383,2530.4,2530.2,4.01448424]
[1750385483048,6.383,2530.4,2530.2,3.95224736]
[1750385484347,6.383,2530.4,2530.1,4.01462009]
[1750385484552,6.383,2530.4,2530.2,3.95224765]
[1750385485253,6.383,2530.4,2530.2,3.95224924]
[1750385487220,6.383,2530.4,2530.1,4.01464108]
[1750385487549,6.383,2530.4,2530.3,3.95210054]
[1750385487752,6.75296725,2530.4,2530.3,4.01440054]
[1750385488154,6.75288105,2530.4,2530.3,4.01440054]
[1750385488338,6.383,2530.4,2530.3,4.01440054]
[1750385488522,6.75290571,2530.4,2530.3,4.01440054]
[1750385489351,6.75290571,2530.4,2530.2,3.95217139]
[1750385489515,6.383,2530.4,2530.2,3.95217139]
[1750385489720,6.383,2530.4,2530.2,3.95225673]
[1750385489931,6.383,2530.4,2530.2,4.01455673]
[1750385490114,6.383,2530.4,2530.3,3.95210054]
[1750385490319,6.75281602,2530.4,2530.3,3.95210054]
[1750385490626,6.75281593,2530.4,2530.3,3.95210054]
[1750385491154,6.75281604,2530.4,2530.3,3.95210054]
[1750385491348,6.75281597,2530.4,2530.3,3.95210054]
[1750385491518,6.75281597,2530.4,2530.3,4.01440054]
[1750385492358,6.75277194,2530.4,2530.3,4.01440054]
[1750385492849,6.75277143,2530.4,2530.3,4.01440054]
[1750385493352,6.75277143,2530.4,2530.3,0.0623]
[1750385494155,6.75276511,2530.4,2530.3,0.0623]
[1750385494464,6.75276511,2530.4,2530.2,3.95223826]
[1750385494654,6.383,2530.4,2530.3,0.0623]
[1750385494856,6.75276511,2530.4,2530.3,0.0623]
[1750385495058,6.75276511,2530.4,2530.3,4.01440054]
[1750385495253,6.383,2530.4,2530.3,4.01440054]
[1750385495501,6.7527647,2530.4,2530.3,4.01440054]
[1750385496365,0.3697647,2530.4,2530.3,4.01440054]
[1750385496564,8.017,2530.4,2530.3,10.89441029]
[1750385496754,8.38675427,2530.4,2530.3,10.89441029]
[1750385496957,8.017,2530.4,2530.3,10.89441029]
[1750385497152,20.2801,2530.8,2530.3,12.45441331]
[1750385497358,9.493,2530.8,2530.7,3.95147587]
[1750385497529,17.87969298,2530.8,2530.7,4.00947587]
[1750385497865,17.88369298,2530.8,2530.7,4.00947587]
[1750385498439,17.514,2530.8,2530.7,4.00947587]
[1750385498638,17.88371641,2530.8,2530.7,4.00947587]
[1750385499659,17.88376904,2530.8,2530.7,4.00947587]
[1750385499857,17.88376905,2530.8,2530.7,5.5737469]
[1750385500046,17.514,2530.8,2530.7,5.5737469]
[1750385500346,17.88377557,2530.8,2530.7,5.5737469]
[1750385501196,17.88377557,2530.8,2530.7,1.62227103]
[1750385501493,17.88377557,2530.8,2530.7,5.5737469]
[1750385502778,17.88381843,2530.8,2530.7,5.5737469]
[1750385503293,17.88381847,2530.8,2530.7,1.62227103]
[1750385503846,17.88384706,2530.8,2530.7,1.62227103]
[1750385504273,17.88384706,2530.8,2530.7,5.5737469]
[1750385504538,17.88384706,2530.8,2530.7,1.62227103]
[1750385504981,8.39084706,2530.8,2530.7,1.62227103]
[1750385505587,8.39086821,2530.8,2530.7,1.62227103]
[1750385506543,8.39089477,2530.8,2530.7,1.62227103]
[1750385507141,8.39089477,2530.8,2530.7,0.058]
[1750385507687,8.39093024,2530.8,2530.7,0.058]
[1750385508386,8.39092832,2530.8,2530.7,0.058]
[1750385508588,8.39092854,2530.8,2530.7,0.058]
[1750385508753,8.39094653,2530.8,2530.7,0.058]
[1750385509498,8.39101538,2530.8,2530.7,0.058]
[1750385511286,8.39108696,2530.8,2530.7,0.058]
[1750385511581,13.12511027,2530.8,2530.4,3.95187848]
[1750385511782,0.37008727,2530.7,2530.5,0.058]
[1750385511948,6.381,2530.6,2530.5,0.058]
[1750385512147,6.75110006,2530.6,2530.3,3.95200667]
[1750385512380,6.381,2530.6,2530.4,0.058]
[1750385513151,6.3669909,2530.8,2530.3,3.95200667]
[1750385513152,8.015,2530.5,2530.3,3.95200667]
[1750385513351,8.015,2530.5,2530.4,0.058]
[1750385513795,8.015,2530.5,2530.4,4.00994435]
[1750385522510,8.015,2530.5,2530.4,3.95194435]
[1750385522999,8.015,2530.5,2530.4,4.00994435]
[1750385525685,8.38543876,2530.5,2530.4,4.00994435]
[1750385526511,8.015,2530.5,2530.4,4.00994435]
[1750385526825,8.38565722,2530.5,2530.4,4.00994435]
[1750385527539,8.3856522,2530.5,2530.4,4.00994435]
[1750385528135,8.38566715,2530.5,2530.4,4.00994435]
[1750385529232,8.38567092,2530.5,2530.4,4.00994435]
[1750385529843,8.38567017,2530.5,2530.4,4.00994435]
[1750385531108,8.38567016,2530.5,2530.4,4.00994435]
[1750385531501,10.01883718,2530.5,2529.8,0.8504]
[1750385531726,10.37067016,2530.4,2530.0,3.95243554]
[1750385531907,0.37067016,2530.3,2529.9,4.01019478]
[1750385532202,1.12737016,2530.2,2529.9,4.01019478]
[1750385532428,6.74867016,2530.1,2529.9,4.01019478]
[1750385532613,1.99967016,2530.0,2529.9,4.01019478]
[1750385533700,1.629,2530.0,2529.9,4.01019478]
[1750385533905,1.99919561,2530.0,2529.9,4.01019478]
[1750385534129,1.99919983,2530.0,2529.9,4.01019478]
[1750385534321,1.99919983,2530.0,2529.9,0.0575]
[1750385534635,1.99919983,2530.0,2529.7,3.95294931]
[1750385534825,1.629,2530.0,2529.8,0.0575]
[1750385535352,1.629,2530.0,2529.7,4.01044931]
[1750385535902,1.629,2530.0,2529.8,0.0575]
[1750385536118,1.629,2530.0,2529.8,4.01036924]
[1750385536311,1.629,2530.0,2529.9,4.0102254]
[1750385536619,1.629,2530.0,2529.9,0.0575]
[1750385538441,1.629,2530.0,2529.8,3.95279202]
[1750385538646,1.629,2530.0,2529.8,4.01029202]
[1750385538845,1.629,2530.0,2529.6,4.01069001]
[1750385539053,1.629,2530.0,2529.7,0.0575]
[1750385539547,0.36975106,2529.9,2529.7,0.0575]
[1750385539706,1.13165106,2529.9,2529.6,4.01069001]
[1750385539906,0.7619,2529.9,2529.6,4.01069001]
[1750385540450,0.7619,2529.9,2529.7,0.0575]
[1750385540836,0.7619,2529.9,2529.5,3.95325648]
[1750385541150,4.71465224,2529.9,2529.6,0.0575]
[1750385541531,3.95288688,2529.8,2529.5,0.0575]
[1750385541735,3.95288688,2529.8,2529.3,3.95356859]
[1750385541736,6.377,2529.7,2529.3,3.95356859]
[1750385541904,3.95335457,2529.5,2529.1,3.95395281]
[1750385542112,5.58352398,2529.4,2529.0,3.95404816]
[1750385542305,11.14193595,2529.3,2529.0,0.0575]
[1750385542511,11.14193595,2529.3,2528.9,1.93766529]
[1750385542823,11.14193595,2529.3,2528.9,5.89194708]
[1750385543725,7.1882,2529.3,2528.9,5.89194708]
[1750385545463,7.1882,2529.3,2528.9,1.88016529]
[1750385545464,14.06820975,2529.3,2528.9,1.88016529]
[1750385545678,14.73563206,2529.0,2528.9,1.88016529]
[1750385545884,21.11663206,2529.0,2528.9,1.88016529]
[1750385546016,22.03534988,2529.0,2528.9,1.88016529]
[1750385547816,21.66663206,2529.0,2528.9,1.88016529]
[1750385548015,25.05476207,2529.0,2528.9,1.88016529]
[1750385551141,27.95386213,2529.0,2528.9,1.88016529]
[1750385554376,34.83387188,2529.0,2528.9,1.88016529]
[1750385558082,35.20161283,2529.0,2528.9,1.88016529]
[1750385558241,65.20161283,2529.0,2528.9,1.88016529]
[1750385559322,65.20179979,2529.0,2528.9,1.88016529]
[1750385560282,65.20179993,2529.0,2528.9,1.88016529]
[1750385560626,65.20177839,2529.0,2528.9,1.88016529]
[1750385561066,67.2265474,2529.0,2528.9,1.88016529]
[1750385561369,60.84497758,2529.0,2528.9,1.88016529]
[1750385561575,67.22697758,2529.0,2528.9,1.88016529]
[1750385562162,67.22697318,2529.0,2528.9,1.88016529]
[1750385562358,37.22697318,2529.0,2528.9,1.88016529]
[1750385562529,67.22697318,2529.0,2528.9,1.88016529]
[1750385563219,74.10698293,2529.0,2528.9,1.35090916]
[1750385563447,74.10698293,2529.0,2528.9,0.20266427]
[1750385564036,73.73869806,2529.0,2528.9,0.20266427]
[1750385564225,74.10721229,2529.0,2528.9,0.20266427]
[1750385564422,74.10721469,2529.0,2528.9,0.20266427]
[1750385564638,73.73869806,2529.0,2528.9,0.20266427]
[1750385564836,74.10721165,2529.0,2528.9,0.20266427]
[1750385565177,74.10720998,2529.0,2528.9,0.20266427]
[1750385565527,74.10714254,2529.0,2528.9,0.20266427]
[1750385568432,73.73869806,2529.0,2528.9,0.20266427]
[1750385568634,73.73869806,2529.0,2528.4,1.93250689]
[1750385568635,4.50491398,2528.5,2528.4,1.93250689]
[1750385568868,30.52351491,2528.5,2528.4,1.93250689]
[1750385569847,63.97134564,2528.5,2528.4,1.93250689]
[1750385570751,63.97172628,2528.5,2528.4,1.93250689]
[1750385571261,63.97229446,2528.5,2528.4,1.93250689]
[1750385571982,63.97217378,2528.5,2528.4,1.93250689]
[1750385572178,55.95617378,2528.5,2528.4,1.93250689]
[1750385572380,63.97117378,2528.5,2528.4,1.93250689]
[1750385572763,63.97116443,2528.5,2528.4,1.93250689]
[1750385573962,63.97131927,2528.5,2528.4,1.93250689]
[1750385575181,63.97150487,2528.5,2528.4,1.93250689]
[1750385576063,63.97150472,2528.5,2528.4,1.93250689]
[1750385576384,63.97145784,2528.5,2528.4,1.93250689]
[1750385577151,63.60165446,2528.5,2528.4,1.93250689]
[1750385577350,63.97145993,2528.5,2528.4,1.93250689]
[1750385577552,63.97145993,2528.5,2528.4,1.83250689]
[1750385578254,33.97145993,2528.5,2528.4,1.83250689]
[1750385578458,63.97145993,2528.5,2528.4,1.83250689]
[1750385578658,63.97146981,2528.5,2528.4,1.83250689]
[1750385579268,63.97142919,2528.5,2528.4,1.83250689]
[1750385579900,63.60165446,2528.5,2528.4,1.83250689]
[1750385580058,63.9714649,2528.5,2528.4,1.83250689]
[1750385580764,63.97146694,2528.5,2528.4,1.83250689]
[1750385580994,63.97144891,2528.5,2528.4,1.83250689]
[1750385581773,63.97151031,2528.5,2528.4,1.83250689]
[1750385582863,63.60165446,2528.5,2528.4,1.83250689]
[1750385583063,73.47450798,2528.5,2528.4,1.83250689]
[1750385583598,43.47450798,2528.5,2528.4,1.83250689]
[1750385583900,73.47450798,2528.5,2528.4,1.83250689]
[1750385584473,73.47461384,2528.5,2528.4,1.83250689]
[1750385584670,73.47462191,2528.5,2528.4,1.83250689]
[1750385585279,73.4747828,2528.5,2528.4,1.83250689]
[1750385585703,43.4747828,2528.5,2528.4,1.83250689]
[1750385585871,73.4717828,2528.5,2528.4,1.83250689]
[1750385586198,72.7178828,2528.5,2528.4,1.88880689]
[1750385586360,72.71788134,2528.5,2528.4,1.83250689]
[1750385586758,72.7178807,2528.5,2528.4,1.83250689]
[1750385588107,65.83787095,2528.5,2528.4,1.89060689]
[1750385588307,62.39004022,2528.5,2528.4,1.89060689]
[1750385589519,62.39036417,2528.5,2528.4,1.89060689]
[1750385589705,62.01991398,2528.5,2528.4,1.89060689]
[1750385589907,62.39036427,2528.5,2528.4,1.89060689]
[1750385590270,62.01991398,2528.5,2528.4,1.89060689]
[1750385590471,62.39035912,2528.5,2528.4,1.89060689]
[1750385590971,62.3904943,2528.5,2528.4,1.89060689]
[1750385591274,62.01891398,2528.5,2528.4,1.89060689]
[1750385591479,62.38949711,2528.5,2528.4,1.89060689]
[1750385591999,62.01891398,2528.5,2528.4,1.89060689]
[1750385592304,62.38949701,2528.5,2528.4,1.89060689]
[1750385592902,62.01891398,2528.5,2528.4,1.89060689]
[1750385593107,62.38973193,2528.5,2528.4,1.89060689]
[1750385593305,66.34300425,2528.5,2528.4,1.89060689]
[1750385593813,66.34300425,2528.5,2528.4,1.83250689]
[1750385593814,59.96100425,2528.5,2528.4,1.83250689]
[1750385594009,67.10280425,2528.5,2528.4,1.83250689]
[1750385595477,67.10288453,2528.5,2528.4,1.83250689]
[1750385596094,67.10289369,2528.5,2528.4,1.83250689]
[1750385597225,66.7319863,2528.5,2528.4,1.83250689]
[1750385597896,67.10290583,2528.5,2528.4,1.83250689]
[1750385598504,73.22311558,2528.5,2528.4,1.89060689]
[1750385598924,73.22311558,2528.5,2528.4,1.83250689]
[1750385601737,73.22327386,2528.5,2528.4,1.83250689]
[1750385602236,73.22326802,2528.5,2528.4,1.83250689]
[1750385603239,73.22326802,2528.5,2528.4,1.89060689]
[1750385603722,72.85219605,2528.5,2528.4,1.89060689]
[1750385604024,73.22327181,2528.5,2528.4,1.89060689]
[1750385604628,73.22326621,2528.5,2528.4,1.89060689]
[1750385605140,73.22326621,2528.5,2528.4,1.83250689]
[1750385606503,74.03546621,2528.5,2528.4,1.07284216]
[1750385606822,3.95553973,2528.1,2528.0,1.98484848]
[1750385607014,17.58861964,2528.1,2528.0,2.04294848]
[1750385607216,19.08921316,2528.1,2528.0,2.04294848]
[1750385607419,19.08927063,2528.1,2528.0,2.04294848]
[1750385608350,18.718143,2528.1,2528.0,2.04294848]
[1750385608658,19.08905323,2528.1,2528.0,2.04294848]
[1750385608857,19.08903855,2528.1,2528.0,2.04294848]
[1750385609157,19.08903851,2528.1,2528.0,2.04294848]
[1750385609333,20.71903851,2528.1,2528.0,2.04294848]
[1750385609533,20.71903854,2528.1,2528.0,2.04294848]
[1750385610260,20.71894019,2528.1,2528.0,2.04294848]
[1750385611159,20.348143,2528.1,2528.0,2.04294848]
[1750385611330,20.71892009,2528.1,2528.0,2.04294848]
[1750385611520,21.48392009,2528.1,2528.0,1.98484848]
[1750385612328,62.03386418,2528.1,2528.0,1.98484848]
[1750385612529,68.91387393,2528.1,2528.0,1.98484848]
[1750385612729,3.95616568,2527.7,2527.6,2.03719008]
[1750385612959,58.94799661,2527.7,2527.6,2.03719008]
[1750385613255,61.10970821,2527.7,2527.6,2.03719008]
[1750385613566,31.10970821,2527.7,2527.6,2.03719008]
[1750385613867,61.10970821,2527.7,2527.6,2.03719008]
[1750385614065,64.49783822,2527.7,2527.6,2.03719008]
[1750385614450,64.49733033,2527.7,2527.6,2.03719008]
[1750385614759,63.68823033,2527.7,2527.6,2.03719008]
[1750385615063,63.68823033,2527.7,2527.6,2.09529008]
[1750385615962,17.0378108,2527.7,2527.6,2.09529008]
[1750385616170,14.16164512,2527.7,2527.6,2.09529008]
[1750385616326,20.54564512,2527.7,2527.6,2.09529008]
[1750385616527,20.54964512,2527.7,2527.6,2.09529008]
[1750385616978,20.17964883,2527.7,2527.6,2.09529008]
[1750385617184,20.54957036,2527.7,2527.6,2.09529008]
[1750385617776,4.16157036,2527.7,2527.6,2.09529008]
[1750385618070,4.16157036,2527.7,2527.6,2.85819008]
[1750385618377,10.55049624,2527.7,2527.6,6.81451228]
[1750385618869,10.55046517,2527.7,2527.6,2.85819008]
[1750385620426,10.55051028,2527.7,2527.6,2.85819008]
[1750385621133,10.55050831,2527.7,2527.6,2.85819008]
[1750385622679,10.55057012,2527.7,2527.6,2.85819008]
[1750385622884,10.54957012,2527.7,2527.6,2.85819008]
[1750385624578,20.17964883,2527.7,2527.6,2.85819008]
[1750385624785,20.54958378,2527.7,2527.6,2.85819008]
[1750385626980,24.50574946,2527.7,2527.6,2.80009008]